bitfinex/quotes_ETHUSD_20260131
["timestamp","ask_amount","ask_price","bid_price","bid_amount"]
[1769883640959,0.0206206,2384.9,2378.8,1.11089864]
[1769883640960,13.07935919,2382.7,2378.8,1.11089864]
[1769883641154,0.19808591,2382.8,2378.8,1.11089864]
[1769883641155,1.0956,2380.4,2378.8,14.05043419]
[1769883641378,3.39225496,2380.0,2378.8,12.99949133]
[1769883641553,1.11222096,2380.4,2378.8,1.05093367]
[1769883641753,0.25019126,2381.1,2379.0,12.94949133]
[1769883641966,0.01662096,2382.0,2379.4,0.01662096]
[1769883641967,0.01662096,2381.9,2379.4,0.01662096]
[1769883642148,0.01662096,2381.9,2378.9,1.42009435]
[1769883642149,3.375634,2380.3,2379.0,1.38578435]
[1769883642346,3.26162124,2380.2,2379.0,0.2471028]
[1769883642577,0.01662096,2380.8,2379.0,12.94740691]
[1769883642578,3.26162124,2380.4,2379.0,12.94740691]
[1769883642766,0.01662096,2382.2,2380.0,13.99782707]
[1769883642975,0.01662096,2382.2,2378.9,0.52547339]
[1769883642976,0.01662096,2380.8,2378.9,0.52547339]
[1769883643285,0.01662096,2380.9,2379.8,1.0505068]
[1769883643582,0.01662096,2380.9,2379.0,4.20343095]
[1769883643583,0.06601114,2380.7,2379.9,1.05042809]
[1769883643783,0.01662096,2381.6,2379.9,1.05042809]
[1769883643784,0.01662096,2381.2,2379.9,1.05042809]
[1769883643991,0.06601114,2381.2,2380.0,0.52524354]
[1769883644147,0.19808591,2382.8,2381.0,0.01662096]
[1769883644352,0.19808591,2382.8,2380.6,0.01662096]
[1769883644353,0.01662096,2381.7,2379.7,4.20185722]
[1769883644652,0.01662096,2382.2,2380.0,14.35165045]
[1769883644872,0.01662096,2382.0,2380.2,12.93078595]
[1769883645407,1.24728667,2382.8,2380.2,12.93078595]
[1769883645678,1.24728667,2382.8,2380.3,1.3981162]
[1769883645679,0.01662096,2381.6,2380.3,1.3981162]
[1769883645868,0.01662096,2381.9,2379.3,13.47760902]
[1769883646069,0.01662096,2381.1,2379.6,1.05057107]
[1769883646267,0.01662096,2381.1,2379.2,17.13374959]
[1769883646580,0.01662096,2381.4,2379.9,1.05044529]
[1769883646780,0.06601114,2381.3,2379.9,4.20168067]
[1769883647079,0.06601114,2381.5,2380.0,13.45766254]
[1769883647257,0.06601114,2381.5,2379.8,1.0504643]
[1769883647258,0.01662096,2381.4,2380.2,0.0011]
[1769883647459,0.06601114,2381.3,2380.2,0.0011]
[1769883647864,0.01662096,2381.0,2379.0,0.8801]
[1769883648062,0.01662096,2381.0,2379.0,0.0011]
[1769883648063,0.01662096,2380.6,2379.0,0.0011]
[1769883648277,0.01662096,2380.2,2379.0,0.0011]
[1769883648485,0.01662096,2380.2,2378.2,0.0826321]
[1769883648486,0.01662096,2379.6,2378.2,0.0826321]
[1769883648701,0.01662096,2379.4,2378.2,1.13383507]
[1769883648876,0.06491114,2379.5,2378.2,1.13383507]
[1769883649075,0.06491114,2379.5,2378.3,0.53386959]
[1769883649287,0.0815321,2379.5,2378.2,1.1338289]
[1769883649489,0.01662096,2379.9,2378.2,1.1338289]
[1769883649490,1.05040926,2380.1,2378.2,2.0128289]
[1769883649687,1.05040926,2380.1,2378.2,1.1338289]
[1769883649688,0.01662096,2379.8,2378.2,1.1338289]
[1769883649881,0.01662096,2379.8,2377.2,0.01662096]
[1769883649882,0.01662096,2379.2,2377.0,4.20693958]
[1769883650085,0.01662096,2379.2,2377.5,1.0514858]
[1769883650086,0.01662096,2378.7,2377.5,1.0514858]
[1769883650390,0.01662096,2378.5,2377.5,4.20605063]
[1769883650561,0.01662096,2378.5,2376.9,4.20715008]
[1769883650562,0.06491114,2378.6,2377.7,4.20572639]
[1769883650762,0.06491114,2378.6,2377.0,12.93078595]
[1769883650763,1.06770357,2378.5,2377.0,12.93078595]
[1769883650967,1.06770357,2378.5,2376.4,1.09732957]
[1769883650968,0.01662096,2378.1,2377.1,1.05168594]
[1769883651194,0.01662096,2378.4,2376.4,13.80978595]
[1769883651195,0.0815321,2378.4,2377.2,1.05163199]
[1769883651400,0.0815321,2378.4,2376.7,4.20740467]
[1769883651401,0.01662096,2378.2,2377.3,4.20643288]
[1769883651602,0.01662096,2378.2,2376.8,4.20723097]
[1769883651603,0.01662096,2379.1,2377.6,1.05146986]
[1769883651901,0.01662096,2378.9,2377.6,1.05146986]
[1769883652062,0.01662096,2378.9,2377.0,0.88]
[1769883652063,0.01662096,2378.2,2377.0,0.88]
[1769883652266,0.01662096,2378.6,2377.6,1.05146871]
[1769883652463,1.05076751,2379.3,2377.6,1.05146871]
[1769883652665,1.05076751,2379.3,2377.2,0.01662096]
[1769883652666,0.01662096,2378.8,2377.0,4.20686557]
[1769883653098,0.0815321,2378.7,2377.0,4.20686557]
[1769883653302,0.06491114,2378.7,2377.0,13.81078595]
[1769883653598,0.01662096,2379.6,2377.4,12.94740691]
[1769883653766,0.0815321,2379.6,2377.7,0.01662096]
[1769883654087,0.01662096,2380.1,2378.1,0.01662096]
[1769883654290,0.01662096,2380.6,2378.8,12.93078595]
[1769883654594,0.01662096,2381.0,2379.2,0.01662096]
[1769883654889,1.04975191,2381.6,2379.2,0.01662096]
[1769883654890,0.01662096,2381.8,2379.8,0.01662096]
[1769883655089,0.01662096,2381.8,2379.7,12.94740691]
[1769883655090,0.01662096,2381.5,2379.6,1.05059673]
[1769883655262,0.01662096,2382.1,2379.6,1.05059673]
[1769883655263,0.01662096,2382.6,2380.0,12.94740691]
[1769883655466,0.01662096,2382.6,2380.5,0.01662096]
[1769883655668,0.01662096,2382.6,2380.4,0.01662096]
[1769883655871,0.88,2383.6,2380.9,0.01662096]
[1769883656094,12.83801998,2383.8,2381.2,0.01662096]
[1769883656095,1.06561203,2383.3,2381.2,0.01662096]
[1769883656292,1.06561203,2383.3,2381.5,0.01662096]
[1769883656293,0.01662096,2383.3,2381.5,0.01662096]
[1769883656481,0.01662096,2383.4,2381.6,0.01662096]
[1769883656671,1.0653894,2383.8,2382.0,0.01662096]
[1769883656871,1.0487017,2383.9,2382.1,1.04949414]
[1769883657204,0.52601248,2383.8,2382.2,0.52640917]
[1769883657493,0.01662096,2383.6,2382.2,0.52640917]
[1769883658168,0.01662096,2383.6,2382.0,1.04953681]
[1769883658169,0.01662096,2383.5,2382.0,1.04953681]
[1769883658585,0.54263344,2383.8,2382.0,1.04953681]
[1769883658774,0.01662096,2383.7,2382.0,1.04953681]
[1769883658972,1.06545465,2383.6,2382.1,0.52478654]
[1769883659192,1.06545465,2383.6,2381.8,0.01662096]
[1769883659493,0.01662096,2383.5,2381.7,4.198677]
[1769883659710,0.01662096,2383.5,2381.7,1.0496704]
[1769883659711,0.001,2383.0,2381.7,1.0496704]
[1769883659899,0.001,2383.0,2381.8,0.52484935]
[1769883660571,1.04131463,2383.7,2381.8,0.52484935]
[1769883660779,0.01662096,2383.7,2381.8,0.54147031]
[1769883661093,0.01662096,2384.0,2382.1,0.01662096]
[1769883661094,1.04868045,2384.0,2382.1,0.01662096]
[1769883661296,0.52597713,2383.9,2382.2,0.01662096]
[1769883661593,0.01662096,2383.6,2382.0,0.88]
[1769883661896,0.01662096,2384.1,2382.2,12.93078595]
[1769883662109,0.01662096,2384.1,2382.0,0.88]
[1769883662110,0.01662096,2384.2,2383.6,0.01662096]
[1769883662264,0.01662096,2384.2,2382.8,7.34808665]
[1769883662265,0.01662096,2385.8,2383.8,12.93078595]
[1769883662467,0.01662096,2385.8,2383.7,0.88]
[1769883662468,0.01662096,2386.1,2384.1,12.93078595]
[1769883662697,0.01662096,2386.2,2384.3,12.93078595]
[1769883662899,0.01662096,2386.2,2384.0,1.04865771]
[1769883662900,0.01662096,2385.1,2384.0,1.04865771]
[1769883663070,0.01662096,2385.4,2384.0,1.92865771]
[1769883663273,0.01662096,2386.0,2384.0,14.85944366]
[1769883663511,0.01662096,2385.7,2384.0,14.85944366]
[1769883663708,0.01662096,2385.3,2384.1,1.90540745]
[1769883664013,0.01662096,2385.3,2383.6,4.19463087]
[1769883664014,0.01662096,2384.5,2382.8,4.19670262]
[1769883664313,0.01662096,2384.0,2383.0,4.19639013]
[1769883664528,0.01662096,2384.0,2383.3,1.04893372]
[1769883664808,0.01662096,2384.0,2382.7,4.19678691]
[1769883664809,0.01662096,2384.4,2382.7,4.19353404]
[1769883665011,0.01242096,2384.4,2382.8,0.5073534]
[1769883665182,4.20957441,2385.0,2382.8,0.5073534]
[1769883665376,0.01662096,2384.4,2382.8,0.5073534]
[1769883665820,0.01662096,2385.7,2383.3,0.01662096]
[1769883665978,0.01662096,2386.3,2383.3,0.01662096]
[1769883665979,0.01662096,2386.2,2384.1,12.94740691]
[1769883666174,1.04753737,2386.6,2384.1,12.94740691]
[1769883666175,0.01662096,2386.8,2384.7,0.01662096]
[1769883666413,0.01662096,2386.8,2384.4,12.94740691]
[1769883666414,0.01662096,2386.3,2384.4,12.93078595]
[1769883666573,0.01662096,2386.4,2384.5,0.88]
[1769883666781,0.01662096,2386.1,2384.6,1.3810786]
[1769883666985,1.06404847,2386.8,2384.7,1.06497085]
[1769883667174,1.06404847,2386.8,2385.0,0.01662096]
[1769883667175,0.01662096,2386.8,2385.0,0.01662096]
[1769883667379,0.01662096,2387.6,2385.7,13.11737554]
[1769883667621,0.6739072,2387.8,2386.5,0.01662096]
[1769883667622,0.65728624,2387.8,2386.5,0.01662096]
[1769883667779,0.65728624,2387.8,2384.9,7.34808665]
[1769883667978,0.65728624,2387.8,2386.1,0.89662096]
[1769883668178,0.65728624,2387.8,2386.2,0.01662096]
[1769883668407,0.65728624,2387.8,2386.3,0.01662096]
[1769883669185,0.01662096,2387.5,2386.3,1.04763969]
[1769883669384,0.01662096,2387.3,2385.9,1.04782022]
[1769883669583,0.01662096,2387.3,2385.6,0.879]
[1769883669584,0.01662096,2386.8,2385.6,1.04794542]
[1769883669787,0.01662096,2386.8,2385.8,1.04786264]
[1769883670085,0.01662096,2386.9,2385.2,0.879]
[1769883670286,0.01662096,2387.0,2385.2,0.879]
[1769883670582,0.01662096,2387.0,2384.8,4.19312537]
[1769883670583,0.01662096,2386.6,2384.8,4.19312537]
[1769883670782,0.01662096,2386.6,2384.7,1.04834269]
[1769883670783,0.01662096,2385.9,2384.7,1.04834269]
[1769883670981,0.01662096,2386.4,2384.7,1.04834269]
[1769883671183,0.01662096,2386.2,2384.5,4.19339958]
[1769883671484,0.01662096,2386.2,2384.6,0.52418814]
[1769883671485,0.54543074,2386.2,2384.6,0.52418814]
[1769883671803,0.01662096,2386.4,2384.6,0.52418814]
[1769883671804,1.04744975,2386.8,2384.6,0.52418814]
[1769883671986,0.001,2387.0,2385.0,13.11737554]
[1769883672183,0.001,2387.0,2384.6,0.52418814]
[1769883672184,0.01662096,2386.6,2384.6,0.52418814]
[1769883672503,0.01662096,2386.2,2384.7,0.47175877]
[1769883672721,0.01662096,2386.2,2384.7,0.879]
[1769883673009,0.01662096,2386.6,2384.7,0.879]
[1769883673010,0.01662096,2387.2,2384.7,0.879]
[1769883673206,1.0640578,2386.8,2384.9,0.01662096]
[1769883673382,1.0640578,2386.8,2384.8,1.04830593]
[1769883673582,0.54365984,2386.7,2384.9,0.61371506]
[1769883673818,0.001,2387.0,2385.0,13.10075458]
[1769883673989,0.001,2387.0,2385.3,13.10075458]
[1769883674311,0.001,2387.0,2385.5,0.01662096]
[1769883674512,0.001,2387.0,2385.5,13.11737554]
[1769883674816,0.01662096,2388.3,2385.8,13.11737554]
[1769883674817,1.06359829,2387.9,2385.8,13.11737554]
[1769883675112,0.01662096,2387.8,2385.9,0.879]
[1769883675304,1.0470327,2387.7,2386.0,1.0477787]
[1769883675481,4.20379323,2388.3,2386.0,1.0477787]
[1769883675482,1.0633468,2388.4,2386.1,0.61178935]
[1769883675688,0.01662096,2388.0,2386.1,13.72916489]
[1769883675882,0.01662096,2387.8,2386.1,0.61178935]
[1769883676085,0.01662096,2388.3,2386.1,0.62841031]
[1769883676285,0.01662096,2387.8,2386.1,0.61178935]
[1769883676486,0.01662096,2387.7,2386.1,0.61178935]
[1769883676708,0.01662096,2387.7,2386.2,0.879]
[1769883677009,0.01662096,2388.1,2386.2,0.879]
[1769883677309,1.06343718,2388.2,2386.4,1.04760308]
[1769883677608,0.01662096,2388.1,2386.4,3.3917455]
[1769883677815,0.01662096,2387.6,2386.3,1.04762053]
[1769883678009,0.01662096,2387.4,2386.3,1.04762053]
[1769883678190,0.01662096,2387.3,2386.3,1.04762053]
[1769883678390,0.01662096,2387.1,2385.9,0.879]
[1769883678611,0.01662096,2386.9,2385.8,1.0478641]
[1769883678921,0.01662096,2387.1,2386.0,1.04776248]
[1769883679090,0.01662096,2387.1,2385.0,13.99637554]
[1769883679091,0.01662096,2386.7,2385.2,4.19244684]
[1769883679409,0.01662096,2386.6,2385.3,4.19226115]
[1769883679730,0.01662096,2387.0,2385.3,4.19226115]
[1769883679731,1.04716427,2387.4,2385.3,4.19226115]
[1769883679916,0.01662096,2386.8,2385.4,0.61193473]
[1769883680214,0.01662096,2386.8,2385.3,4.19226115]
[1769883680215,0.01662096,2386.7,2385.3,4.19226115]
[1769883680410,0.01662096,2386.6,2385.3,1.04808619]
[1769883680706,0.01662096,2387.4,2385.3,1.04808619]
[1769883680897,0.01662096,2387.1,2385.3,1.04808619]
[1769883681087,0.01662096,2387.0,2385.3,1.04808619]
[1769883681286,1.06409236,2386.7,2385.3,1.04808619]
[1769883681488,0.01662096,2386.6,2385.3,1.04808619]
[1769883681689,1.06409236,2386.7,2385.3,1.04808619]
[1769883681884,0.01662096,2386.0,2384.5,1.048417]
[1769883682114,0.01662096,2386.0,2384.5,1.04840623]
[1769883682115,0.01662096,2385.6,2384.5,1.04840623]
[1769883682305,0.01662096,2385.6,2384.6,1.04839145]
[1769883682504,0.01662096,2385.6,2384.8,1.04830556]
[1769883682688,0.01662096,2385.4,2384.2,1.04854555]
[1769883682884,0.01662096,2385.3,2383.9,0.879]
[1769883683112,1.06405634,2386.8,2384.0,14.16599016]
[1769883683423,0.01662096,2387.1,2384.0,14.16599016]
[1769883683424,4.18971007,2387.2,2384.8,0.01662096]
[1769883683723,4.18971007,2387.2,2384.9,0.89562096]
[1769883683724,0.01662096,2386.9,2384.9,0.89562096]
[1769883683897,0.001,2387.0,2385.6,0.01662096]
[1769883684224,0.001,2387.0,2385.7,0.01662096]
[1769883684538,0.001,2387.0,2386.0,0.01662096]
[1769883684828,0.001,2387.0,2386.1,0.879]
[1769883685296,0.001,2387.0,2386.2,1.04769088]
[1769883685917,0.001,2387.0,2386.1,5.06976355]
[1769883685918,0.001,2387.0,2386.1,0.879]
[1769883686115,0.001,2387.0,2385.2,4.19242382]
[1769883686319,0.001,2387.0,2386.0,1.04776378]
[1769883686524,0.001,2387.0,2386.0,1.04776701]
[1769883686819,0.001,2387.0,2386.1,1.04771755]
[1769883687127,0.001,2387.0,2384.9,0.878]
[1769883687128,0.01662096,2386.4,2384.9,0.878]
[1769883687301,0.01662096,2386.4,2384.1,6.13500149]
[1769883687302,0.01662096,2385.3,2384.1,1.9239621]
[1769883687499,0.01662096,2385.2,2384.0,4.19456798]
[1769883687717,1.04782262,2385.9,2384.1,1.0486066]
[1769883687899,4.20791145,2386.0,2384.1,1.0486066]
[1769883687900,1.06440203,2386.0,2384.2,0.54093842]
[1769883688217,0.01662096,2385.9,2384.2,0.52431746]
[1769883688417,1.06428816,2386.3,2384.2,0.52431746]
[1769883688718,0.01662096,2386.0,2384.2,0.52431746]
[1769883689233,0.01662096,2385.9,2384.2,0.52431746]
[1769883689405,1.04786654,2385.8,2384.3,1.04852577]
[1769883689602,0.01662096,2386.1,2384.3,1.04852577]
[1769883689807,1.06433849,2386.2,2384.4,0.01662096]
[1769883690013,4.30898214,2386.7,2384.4,0.01662096]
[1769883690014,0.01662096,2386.6,2384.5,0.878]
[1769883690321,0.01662096,2386.6,2384.5,0.89462096]
[1769883690616,0.01662096,2386.6,2384.5,0.878]
[1769883690617,0.01662096,2386.5,2384.5,0.878]
[1769883690821,0.01662096,2385.8,2383.9,1.04868409]
[1769883691126,0.01662096,2385.4,2383.8,1.04871754]
[1769883691322,1.04808619,2385.3,2383.9,4.71917048]
[1769883691500,1.04808619,2385.3,2383.9,0.52437312]
[1769883691699,1.04808619,2385.3,2383.8,1.04872814]
[1769883691700,1.06470715,2385.3,2383.8,1.04872814]
[1769883691899,0.01662096,2385.1,2383.4,0.879]
[1769883692119,0.01662096,2385.1,2383.8,1.04870965]
[1769883692319,0.01662096,2385.1,2383.8,1.04871958]
[1769883692599,0.01662096,2385.1,2383.9,1.0487002]
[1769883692809,0.01662096,2385.1,2383.1,4.21274228]
[1769883693010,0.01662096,2384.9,2383.3,1.04895752]
[1769883693196,0.01662096,2384.9,2382.6,0.01662096]
[1769883693197,0.01662096,2384.2,2382.5,1.04929275]
[1769883693393,0.01662096,2384.3,2382.5,0.01662096]
[1769883693394,1.04853708,2384.3,2382.5,0.01662096]
[1769883693620,0.01662096,2384.4,2382.7,0.01662096]
[1769883693621,1.04848403,2384.4,2382.7,0.01662096]
[1769883693825,1.57604934,2384.4,2382.7,0.01662096]
[1769883694026,1.57604934,2384.4,2382.4,0.01662096]
[1769883694324,1.57604934,2384.4,2382.6,0.01662096]
[1769883694527,1.57604934,2384.4,2382.4,0.01662096]
[1769883694528,1.04848403,2384.4,2382.4,0.01662096]
[1769883694758,0.01662096,2384.2,2382.3,1.04940603]
[1769883695026,0.01662096,2384.2,2382.3,1.92840603]
[1769883695395,0.01662096,2384.2,2382.3,1.94502699]
[1769883695602,1.06521552,2384.2,2382.7,0.0011]
[1769883695915,1.04859456,2384.2,2382.7,0.0011]
[1769883696115,0.01662096,2384.1,2382.7,0.0011]
[1769883696315,0.01662096,2383.8,2382.7,0.0011]
[1769883696613,0.01662096,2383.7,2382.7,0.0011]
[1769883696817,0.01662096,2383.6,2382.7,0.0011]
[1769883697018,0.01662096,2383.2,2382.0,1.04953209]
[1769883697326,0.01662096,2383.3,2382.0,1.04953209]
[1769883697327,0.879,2384.1,2382.3,1.04940543]
[1769883697498,1.04865771,2384.0,2382.3,1.04940543]
[1769883697703,0.61389095,2383.9,2382.4,0.61260296]
[1769883698122,1.06479504,2385.2,2383.0,0.01662096]
[1769883698433,4.20936263,2385.1,2383.0,0.01662096]
[1769883698631,0.01662096,2384.8,2382.6,12.72951559]
[1769883698924,0.01662096,2384.3,2382.4,0.61260296]
[1769883699096,0.52741577,2385.0,2382.9,0.01662096]
[1769883699304,0.47533994,2384.9,2382.9,0.01662096]
[1769883699507,4.19249649,2385.3,2383.4,0.01662096]
[1769883699802,4.20911745,2385.3,2383.2,0.01662096]
[1769883700031,1.04803312,2385.5,2383.7,0.01662096]
[1769883700329,1.04803312,2385.5,2383.8,0.879]
[1769883700529,0.01662096,2385.3,2383.2,1.80080263]
[1769883700837,1.04751529,2386.6,2384.4,0.01662096]
[1769883701039,1.06413625,2386.6,2384.5,0.01662096]
[1769883701240,1.06413625,2386.6,2384.4,0.879]
[1769883701241,0.01662096,2386.4,2384.4,0.879]
[1769883701448,1.04764698,2386.3,2384.5,1.04843782]
[1769883701649,1.04764698,2386.3,2383.6,12.72951559]
[1769883701650,12.61093402,2386.1,2382.3,4.19753372]
[1769883701937,13.44160349,2385.5,2383.8,1.0487304]
[1769883702134,13.44160349,2385.5,2382.9,0.01662096]
[1769883702135,0.01662096,2385.2,2383.0,13.89318497]
[1769883702326,0.01662096,2385.2,2383.5,1.04886885]
[1769883702641,0.01662096,2386.0,2383.6,0.01662096]
[1769883702817,0.01662096,2385.6,2383.8,1.04872726]
[1769883703021,0.01662096,2385.6,2383.1,4.1961203]
[1769883703022,0.01662096,2385.2,2383.1,4.1961203]
[1769883703222,0.01662096,2385.2,2383.3,0.01662096]
[1769883703425,0.01662096,2385.2,2383.7,1.04877956]
[1769883703740,0.01662096,2385.2,2383.3,1.04896571]
[1769883703741,1.04817408,2385.1,2383.3,1.04896571]
[1769883704045,0.01662096,2385.4,2383.5,0.01662096]
[1769883704219,1.04808619,2385.3,2383.6,0.01662096]
[1769883704540,1.04808619,2385.3,2383.3,14.94215068]
[1769883704541,0.5240431,2385.2,2383.3,14.94215068]
[1769883704710,0.5240431,2385.2,2383.4,0.01662096]
[1769883704912,0.5240431,2385.2,2382.4,14.52240889]
[1769883704913,0.01662096,2384.6,2382.4,14.52240889]
[1769883705229,0.01662096,2385.1,2383.2,1.04898729]
[1769883705429,0.01662096,2384.8,2383.2,1.04900571]
[1769883705640,1.04834989,2384.7,2382.7,1.04922986]
[1769883705960,0.01662096,2384.5,2382.7,1.04922986]
[1769883706113,0.01662096,2384.2,2382.4,1.04934334]
[1769883706314,0.01662096,2383.7,2381.8,13.89318497]
[1769883706526,0.01662096,2384.0,2381.8,13.89318497]
[1769883706744,0.01662096,2384.0,2382.3,1.04939475]
[1769883707046,0.01662096,2383.5,2381.3,0.879]
[1769883707231,0.01662096,2383.4,2381.8,1.04959208]
[1769883707432,0.01662096,2383.1,2381.4,4.19919502]
[1769883707644,1.0488777,2383.5,2381.6,0.01662096]
[1769883707825,1.0488777,2383.5,2381.5,0.43775046]
[1769883707826,1.0488777,2383.5,2381.5,0.0011]
[1769883708139,0.01662096,2383.0,2381.5,0.0011]
[1769883708342,0.01662096,2382.6,2381.5,0.0011]
[1769883708512,0.01662096,2381.9,2380.0,13.89318497]
[1769883708713,0.01662096,2383.0,2380.3,0.01662096]
[1769883708913,0.01662096,2382.0,2380.1,1.3893185]
[1769883709210,0.01662096,2381.6,2379.3,0.01662096]
[1769883709434,0.01662096,2381.7,2380.0,1.05040322]
[1769883709639,1.04971447,2381.6,2379.9,0.01662096]
[1769883709837,1.04962633,2381.8,2381.3,0.0011]
[1769883710042,0.01662096,2382.5,2381.3,0.0011]
[1769883710246,1.04900973,2383.2,2381.4,0.01662096]
[1769883710431,1.04883369,2383.6,2381.6,13.90980593]
[1769883710740,1.04883369,2383.6,2381.8,13.89318497]
[1769883710925,0.01662096,2383.3,2381.4,1.39441479]
[1769883711125,0.01662096,2383.3,2381.3,0.0011]
[1769883711332,0.01662096,2383.3,2380.8,0.89562096]
[1769883711333,0.01662096,2382.0,2379.8,15.39088733]
[1769883711541,1.04962633,2381.8,2380.0,1.05042016]
[1769883711722,1.06624729,2381.8,2380.0,1.05042016]
[1769883711935,0.01662096,2381.5,2379.9,1.53908873]
[1769883712116,0.2335703,2381.0,2379.3,1.39430478]
[1769883712318,0.2335703,2381.0,2378.3,4.22117847]
[1769883712319,0.01662096,2379.7,2377.8,0.879]
[1769883712538,0.01662096,2379.8,2377.8,0.879]
[1769883712539,0.658,2379.3,2378.2,0.01662096]
[1769883712736,6.649056,2378.4,2377.7,1.05139658]
[1769883712937,0.658,2379.3,2377.7,0.52574476]
[1769883712938,6.59975672,2377.8,2377.7,0.52574476]
[1769883713136,6.59975672,2377.8,2377.2,0.01772096]
[1769883713137,0.01662096,2378.9,2377.2,1.0527163]
[1769883713316,0.658,2379.3,2377.4,13.90980593]
[1769883713513,0.658,2379.3,2378.1,1.06788036]
[1769883713719,1.06674068,2380.7,2378.7,0.01662096]
[1769883713919,3.51388623,2380.8,2379.5,0.01662096]
[1769883714150,3.51388623,2380.8,2379.3,13.90980593]
[1769883714151,0.35138862,2380.8,2379.7,13.89318497]
[1769883714449,0.35138862,2380.8,2379.6,0.88]
[1769883714450,0.01662096,2382.7,2380.6,13.89318497]
[1769883714616,0.30695868,2383.2,2381.6,13.89318497]
[1769883714818,4.19486433,2383.9,2381.9,0.01662096]
[1769883715039,0.5243522,2383.8,2381.9,0.01662096]
[1769883715239,0.5243522,2383.8,2381.8,0.01662096]
[1769883715439,0.54097316,2383.8,2381.7,0.88]
[1769883715650,1.06514673,2384.4,2382.1,0.01662096]
[1769883715819,0.01662096,2384.0,2381.8,1.04962633]
[1769883716019,1.04852577,2384.3,2382.4,0.01662096]
[1769883716221,5.89320328,2386.0,2382.4,0.01662096]
[1769883716222,0.52583704,2384.6,2383.4,0.01662096]
[1769883716426,0.001,2385.0,2383.6,0.01662096]
[1769883716655,0.001,2385.0,2383.7,0.01662096]
[1769883716952,0.001,2385.0,2383.9,0.01662096]
[1769883717151,0.001,2385.0,2382.9,0.01662096]
[1769883717334,0.001,2385.0,2384.0,0.01662096]
[1769883717535,4.20718633,2386.4,2384.0,0.01662096]
[1769883717536,1.04766647,2386.3,2384.5,1.04843782]
[1769883717850,4.18973451,2386.8,2384.8,0.01662096]
[1769883718052,4.18973451,2386.8,2384.9,0.01662096]
[1769883718224,0.001,2387.0,2385.2,0.01662096]
[1769883718424,0.01662096,2386.6,2384.5,1.04843782]
[1769883718624,0.01662096,2386.6,2383.5,0.01662096]
[1769883718625,0.01662096,2386.0,2383.5,0.01662096]
[1769883718958,0.25019126,2385.8,2383.2,0.89662096]
[1769883719255,0.25019126,2385.8,2384.1,1.04859191]
[1769883719256,0.01662096,2385.6,2384.1,1.04859191]
[1769883719426,0.01662096,2385.7,2383.6,0.01662096]
[1769883719628,0.01662096,2385.4,2383.6,1.47334949]
[1769883719847,0.01662096,2385.3,2383.6,1.04881401]
[1769883720365,0.01662096,2384.5,2382.9,4.19649642]
[1769883720661,0.01662096,2386.5,2383.7,0.01662096]
[1769883720828,0.01662096,2386.2,2384.2,0.01662096]
[1769883721031,0.01662096,2386.1,2384.0,0.01662096]
[1769883721356,0.01662096,2386.2,2384.4,0.01662096]
[1769883721533,0.01662096,2386.6,2384.4,0.01662096]
[1769883721534,0.001,2387.0,2385.3,0.01662096]
[1769883721728,0.001,2387.0,2385.8,0.01662096]
[1769883722153,1.06353889,2388.0,2386.1,0.01662096]
[1769883722365,1.06353889,2388.0,2385.7,0.01662096]
[1769883722366,0.01662096,2387.6,2385.6,13.90980593]
[1769883722664,0.01662096,2388.0,2385.6,13.90980593]
[1769883722665,1.06308391,2389.0,2386.7,0.01662096]
[1769883722827,4.20280037,2389.4,2387.0,0.01662096]
[1769883722828,0.001,2389.4,2387.0,0.01662096]
[1769883723030,0.001,2389.4,2388.0,0.01662096]
[1769883723329,0.21753478,2391.2,2389.3,0.01662096]
[1769883723543,0.01662096,2391.9,2389.5,1.04624398]
[1769883723544,0.01662096,2391.6,2389.5,1.04624398]
[1769883723745,0.01662096,2392.0,2389.5,1.04624398]
[1769883723746,0.21765069,2392.1,2389.9,13.89318497]
[1769883723945,0.21765069,2392.1,2390.3,0.01662096]
[1769883723946,1.04511816,2392.1,2390.3,0.01662096]
[1769883724134,1.04467009,2393.1,2391.1,0.01662096]
[1769883724334,1.04467009,2393.1,2390.7,0.01662096]
[1769883724335,0.01662096,2392.3,2389.7,0.01662096]
[1769883724559,0.01662096,2392.1,2390.0,0.01662096]
[1769883724769,0.01662096,2393.3,2390.4,0.01662096]
[1769883724962,0.01662096,2393.3,2391.0,0.01662096]
[1769883724963,0.52409714,2393.0,2391.0,0.01662096]
[1769883725181,0.01762096,2393.2,2391.6,0.01662096]
[1769883725182,0.001,2393.2,2391.6,0.01662096]
[1769883725342,0.001,2393.2,2391.8,0.01662096]
[1769883725540,0.001,2393.2,2392.0,1.0451505]
[1769883725771,0.001,2393.2,2391.6,4.1811992]
[1769883725974,0.001,2393.2,2391.9,1.0451858]
[1769883726143,0.001,2393.2,2391.8,1.04521994]
[1769883726345,0.001,2393.2,2390.8,0.01662096]
[1769883726346,0.001,2393.2,2391.3,1.04544909]
[1769883726647,0.001,2393.2,2390.9,0.01662096]
[1769883726848,0.01662096,2392.6,2390.2,5.06270424]
[1769883727071,0.01662096,2392.6,2389.9,0.01662096]
[1769883727072,0.01662096,2392.5,2389.9,0.01662096]
[1769883727295,0.01762096,2393.2,2390.4,4.19996689]
[1769883727474,1.29273639,2393.2,2391.9,1.04518133]
[1769883727771,1.29273639,2393.2,2391.3,0.01662096]
[1769883727772,0.001,2393.2,2392.0,0.01662096]
[1769883727938,0.001,2393.2,2391.6,1.0453253]
[1769883728139,0.001,2393.2,2391.7,0.01662096]
[1769883728361,0.001,2393.2,2391.8,0.01662096]
[1769883728572,0.23415667,2394.8,2392.4,0.01662096]
[1769883728773,0.23415667,2394.8,2392.5,0.01662096]
[1769883728774,1.0439721,2394.7,2392.5,0.01662096]
[1769883729074,0.0826321,2394.9,2393.5,0.01662096]
[1769883729375,4.18958247,2396.4,2393.5,0.01662096]
[1769883729376,4.17262188,2396.6,2393.8,0.01662096]
[1769883729671,0.21726522,2396.1,2394.9,0.01662096]
[1769883729876,1.04283986,2397.3,2395.1,0.01662096]
[1769883730042,2.733973,2397.2,2394.6,1.0440157]
[1769883730244,2.733973,2397.2,2393.6,0.01662096]
[1769883730245,12.89974297,2396.8,2394.5,1.04405873]
[1769883730476,0.6115165,2397.1,2394.9,0.01662096]
[1769883730477,0.59489554,2397.1,2394.9,0.01662096]
[1769883730678,1.04257892,2397.9,2395.9,0.01662096]
[1769883730850,0.21713506,2398.9,2396.4,13.95246345]
[1769883731062,4.16914196,2398.6,2396.8,0.01662096]
[1769883731260,0.001,2399.0,2397.9,0.01662096]
[1769883731475,1.04156529,2400.3,2398.9,0.01662096]
[1769883731674,0.21718316,2400.8,2398.0,0.01662096]
[1769883731675,1.12446196,2399.7,2398.0,0.01662096]
[1769883731874,1.12446196,2399.7,2398.9,1.04213724]
[1769883731875,0.52916495,2399.6,2398.9,1.04213724]
[1769883732053,1.12446933,2399.7,2398.2,1.04244493]
[1769883732254,1.12446933,2399.7,2397.1,0.01662096]